Workbook

Sheet FORMATO DE PLANILLA
DG2: DETALLE | DH2: TASA
A3: CONTRATA: | C3: MINSUR | CZ3: AFP | DA3: COMISION | DC3: SEGURO | DD3: OBLIGATORIO | DE3: LEY 27252 | DH3: ADMINISTRATIVO | DI3: SUPERFICIE | DJ3: SOCAVON
A4: RUC : | DA4: FLUJO | DB4: MIXTA | DG4: SCTR PENSION | DI4: 0.1517 | DJ4: 0.012
A5: Periodo del : | C5: 2020-07-01 | D5: al | E5: 2020-07-31 | CZ5: HABITAT | DA5: 0.0147 | DB5: 0.0038 | DC5: 0.0135 | DD5: 0.1 | DE5: 0.02 | DG5: SCTR SALUD | DI5: 0.0063 | DJ5: 0.013
A6: Unidad : | CZ6: INTEGRA | DA6: 0.0155 | DB6: 0 | DC6: 0.0135 | DD6: 0.1 | DE6: 0.02 | DG6: VIDA LEY | DH6: 0.0035
CZ7: PRIMA | DA7: 0.016 | DB7: 0.0018 | DC7: 0.0135 | DD7: 0.1 | DE7: 0.02 | DG7: FJMMS | DH7: 0.005
CZ8: PROFUTURO | DA8: 0.0169 | DB8: 0.0067 | DC8: 0.0135 | DD8: 0.1 | DE8: 0.02 | DG8: SENATI | DH8: 0.0075
CZ9: ONP | DE9: 0.13 | DG9: R.M.V. | DH9: 930
CZ10: REM. ASEG. MAX. | DA10: 9636
T14: =+T15 -> 2020-07-01 | U14: =+U15 -> 2020-07-02 | V14: 2020-07-03 | W14: 2020-07-04 | X14: 2020-07-05 | Y14: 2020-07-06 | Z14: 2020-07-07 | AA14: 2020-07-08 | AB14: 2020-07-09 | AC14: 2020-07-10 | AD14: 2020-07-11 | AE14: 2020-07-12 | AF14: 2020-07-13 | AG14: 2020-07-14 | AH14: 2020-07-15 | AI14: 2020-07-16 | AJ14: 2020-07-17 | AK14: 2020-07-18 | AL14: 2020-07-19 | AM14: 2020-07-20 | AN14: 2020-07-21 | AO14: 2020-07-22 | AP14: 2020-07-23 | AQ14: 2020-07-24 | AR14: 2020-07-25 | AS14: 2020-07-26 | AT14: 2020-07-27 | AU14: 2020-07-28 | AV14: 2020-07-29 | AW14: 2020-07-30 | AX14: 1900-01-31 | AY14: OCURRENCIAS | BJ14: 8 | BK14: HORAS SOBRETIEMPO | BO14: NUEVO | BS14: DIAS | CD14: HORAS EXTRAS | CH14: LIQ DE BBSS. | CS14: BENEFICIOS SOCIALES | CZ14: AFP | DI14: RETENCION JUDICIAL | DM14: ADELANTOS | EA14: APORTES | EJ14: BASE IMPONIBLE
A15: Nº | B15: DNI | C15: APELLIDOS Y NOMBRES | F15: FECHA NACIMIENTO | G15: CARGO | H15: CENTRO COSTOS | I15: AREA DE TRABAJO | J15: FECHA DE INGRESO | K15: FECHA DE CESE | L15: BCO. | M15: CUENTA HABERES | N15: AFP NRO | O15: FECHA AFILIACION SPP | P15: SISTEMA DE PENSION | Q15: TIPO DE COMISION | R15: JORNADA LABORAL | S15: EPS | T15: =+C5 -> 2020-07-01 | U15: =+T15+1 -> 2020-07-02 | V15: =+U15+1 -> 2020-07-03 | W15: 2020-07-04 | X15: 2020-07-05 | Y15: 2020-07-06 | Z15: 2020-07-07 | AA15: 2020-07-08 | AB15: 2020-07-09 | AC15: 2020-07-10 | AD15: 2020-07-11 | AE15: 2020-07-12 | AF15: 2020-07-13 | AG15: 2020-07-14 | AH15: 2020-07-15 | AI15: 2020-07-16 | AJ15: 2020-07-17 | AK15: 2020-07-18 | AL15: 2020-07-19 | AM15: 2020-07-20 | AN15: 2020-07-21 | AO15: 2020-07-22 | AP15: 2020-07-23 | AQ15: 2020-07-24 | AR15: 2020-07-25 | AS15: 2020-07-26 | AT15: 2020-07-27 | AU15: 2020-07-28 | AV15: =+AU15+1 -> 2020-07-29 | AW15: =+AV15+1 -> 2020-07-30 | AX15: 1900-01-31 | AY15: DIA FALTA | AZ15: LIC. SIN GOCE | BA15: DIA SUSPENSIÓN | BB15: DESC. MEDICO | BC15: DIA SUBSIDIO | BD15: LIC. PATERNAL | BE15: LIC. CON GOCE | BF15: VAC | BG15: DIA ATIPICO/DESC. OBL. | BH15: DIA ORDINARIO | BI15: TOTAL DIAS MES | BJ15: HORAS TRABAJADAS | BK15: 0.25 | BL15: 0.35 | BM15: 1 | BN15: FERIADO | BO15: PERMISOS POR HORAS | BP15: COMPENSACION VACACIONAL | BQ15: BASICO MENSUAL | BR15: ASIG. FAMILIAR | BS15: ORDINARIOS | BT15: ATIPICOS | BU15: ASIGNACION FAMILIAR | BV15: LICENCIA POR PATERNIDAD | BW15: LICENCIA CON GOCE DE HABER | BX15: VACACIONES | BY15: COMPENS. VACACIONAL | BZ15: DESCANSO MEDICO | CA15: SUBSIDIO POR INCAPACIDAD | CB15: REINTEGROS AFECTO | CC15: BONO | CD15: FERIADO | CE15: 0.25 | CF15: 0.35 | CG15: 1 | CH15: VACACIONES TRUNCAS | CI15: GRATIFICACION TRUNCA | CJ15: BONIFICACION LEY 29351 PROPORC. | CK15: C.T.S. TRUNCA | CL15: DEV. RENTA DE QUINTA | CM15: REINTEGRO INAFECTO | CN15: CONDICIONES DE TRABAJO | CO15: MOVILIDAD SUPEDITADA A LA ASISTENCIA | CP15: AGUINALDO CANASTA NAVIDEÑA | CQ15: BONO CIERRE DE PLIEGO | CR15: ESCOLARIDAD | CS15: UTILIDAD | CT15: GRATIFICACION ORDINARIA | CU15: BON. EXTR. 9% O 6.75% | CV15: CTS | CW15: TOTAL INGRESOS | CX15: TOTAL ING AFECTOS | CY15: S.N.P. | CZ15: APORTE OBLIGATORIO | DA15: AFP 2% LEY 27252 | DB15: SEGURO AFP | DC15: COM SOBRE FLUJO REM | DD15: COM SOBRE MIXTA | DE15: TOTAL AFP | DF15: DSCTO. FJCMMS 0.5% | DG15: ESSALUD VIDA | DH15: 5TA. CATEG | DI15: % | DJ15: RET. PORCENTUAL | DK15: RET. FIJO | DL15: PRESTAMO | DM15: DE LIQUIDACION | DN15: DE GRATIFICACIONES | DO15: DE CTS | DP15: DE VACACIONES | DQ15: UTILIDAD | DR15: DE MOVILIDAD | DS15: DE SUELDO | DT15: DSCTO PROTECCION FAMILIAR | DU15: DSCTO CONCESIONARIO | DV15: DSCTO PERM. HORAS | DW15: OTROS DESCUENTOS | DX15: DSCTO EPS | DY15: TOTAL DESCUENTO | DZ15: NETO A PAGAR | EA15: ESSALUD | EB15: EPS | EC15: AFP LEY 27252 | ED15: SCTR SALUD | EE15: SCTR PENSION | EF15: 3% D° EMISION | EG15: VIDA LEY | EH15: SENATI | EI15: Total Aportes Empleador | EJ15: ESSALUD | EK15: S.N.P./SENATI | EL15: AFP | EM15: SCTR SALUD | EN15: SCTR PENSION | EO15: VIDA LEY
A16: 1 | B16: 75990857 | C16: AMARO SUEL BETHLES JONATAN | F16: 1998-05-03 | G16: MECANICO ESPECIALISTA | H16: OPERACIÓN MINA | I16: SU | J16: 2019-03-18 | L16: CONTINENTAL | M16: 0011-0057-75-0236793932 | N16: 659161BASRL5 | O16: 2015-12-24 | P16: INTEGRA | Q16: CM | R16: ATIPICO | S16: N | T16: TD | U16: TD | V16: TD | W16: TD | X16: TD | Y16: TD | Z16: TD | AA16: TD | AB16: TD | AC16: TD | AD16: TD | AE16: TD | AF16: TD | AG16: TD | AH16: TD | AI16: TD | AJ16: TD | AK16: TD | AL16: TD | AM16: TD | AN16: TD | AO16: TD | AP16: TD | AQ16: L | AR16: L | AS16: L | AT16: L | AU16: L | AV16: L | AW16: F | AX16: F | AY16: =+IF(OR(MONTH($C$5)=1,MONTH($C$5)=3,MONTH($C$5)=5,MONTH($C$5)=7,MONTH($C$5)=8,MONTH($C$5)=10,MONTH($C$5)=12),COUNTIF(T16:AX16,"F"),IF(MONTH($C$5)=2,COUNTIF(T16:AU16,"F"),COUNTIF(T16:AW16,"F"))) -> 2 | AZ16: =+IF(OR(MONTH($C$5)=1,MONTH($C$5)=3,MONTH($C$5)=5,MONTH($C$5)=7,MONTH($C$5)=8,MONTH($C$5)=10,MONTH($C$5)=12),COUNTIF(T16:AW16,"LSG"),IF(MONTH($C$5)=2,COUNTIF(T16:AU16,"LSG"),COUNTIF(T16:AW16,"LSG"))) -> 0 | BA16: =+IF(OR(MONTH($C$5)=1,MONTH($C$5)=3,MONTH($C$5)=5,MONTH($C$5)=7,MONTH($C$5)=8,MONTH($C$5)=10,MONTH($C$5)=12),COUNTIF(T16:AW16,"S"),IF(MONTH($C$5)=2,COUNTIF(T16:AU16,"S"),COUNTIF(T16:AW16,"S"))) -> 0 | BB16: =IF(OR(MONTH($C$5)=1,MONTH($C$5)=3,MONTH($C$5)=5,MONTH($C$5)=7,MONTH($C$5)=8,MONTH($C$5)=10,MONTH($C$5)=12),COUNTIF(T16:AW16,"DM"),IF(MONTH($C$5)=2,COUNTIF(T16:AU16,"DM"),COUNTIF(T16:AW16,"DM"))) -> 0 | BC16: =IF(OR(MONTH($C$5)=1,MONTH($C$5)=3,MONTH($C$5)=5,MONTH($C$5)=7,MONTH($C$5)=8,MONTH($C$5)=10,MONTH($C$5)=12),COUNTIF(T16:AW16,"SB"),IF(MONTH($C$5)=2,COUNTIF(T16:AU16,"SB"),COUNTIF(T16:AW16,"SB"))) -> 0 | BD16: =IF(OR(MONTH($C$5)=1,MONTH($C$5)=3,MONTH($C$5)=5,MONTH($C$5)=7,MONTH($C$5)=8,MONTH($C$5)=10,MONTH($C$5)=12),COUNTIF(T16:AW16,"LP"),IF(MONTH($C$5)=2,COUNTIF(T16:AU16,"LP"),COUNTIF(T16:AW16,"LP"))) -> 0 | BE16: =IF(OR(MONTH($C$5)=1,MONTH($C$5)=3,MONTH($C$5)=5,MONTH($C$5)=7,MONTH($C$5)=8,MONTH($C$5)=10,MONTH($C$5)=12),COUNTIF(T16:AW16,"LCG"),IF(MONTH($C$5)=2,COUNTIF(T16:AU16,"LCG"),COUNTIF(T16:AW16,"LCG"))) -> 0 | BF16: =IF(OR(MONTH($C$5)=1,MONTH($C$5)=3,MONTH($C$5)=5,MONTH($C$5)=7,MONTH($C$5)=8,MONTH($C$5)=10,MONTH($C$5)=12),COUNTIF(T16:AW16,"V"),IF(MONTH($C$5)=2,COUNTIF(T16:AU16,"V"),COUNTIF(T16:AW16,"V"))) -> 0 | BG16: =+IF(OR(MONTH($C$5)=1,MONTH($C$5)=3,MONTH($C$5)=5,MONTH($C$5)=7,MONTH($C$5)=8,MONTH($C$5)=10,MONTH($C$5)=12),COUNTIF(T16:AW16,"L"),IF(MONTH($C$5)=2,COUNTIF(T16:AU16,"L"),COUNTIF(T16:AW16,"L"))) -> 6 | BH16: =+IF(OR(MONTH($C$5)=1,MONTH($C$5)=3,MONTH($C$5)=5,MONTH($C$5)=7,MONTH($C$5)=8,MONTH($C$5)=10,MONTH($C$5)=12),COUNTIF(T16:AW16,"TD"),IF(MONTH($C$5)=2,COUNTIF(T16:AU16,"TD"),COUNTIF(T16:AW16,"TD")))+IF(OR(MONTH($C$5)=1,MONTH($C$5)=3,MONTH($C$5)=5,MONTH($C$5)=7,MONTH($C$5)=8,MONTH($C$5)=10,MONTH($C$5)=12),COUNTIF(T16:AW16,"TN"),IF(MONTH($C$5)=2,COUNTIF(T16:AU16,"TN"),COUNTIF(T16:AW16,"TN"))) -> 23 | BI16: =+SUM(AY16:BH16) -> 31 | BJ16: =+BH16*$BJ$14 -> 184 | BQ16: 930 | BR16: 0 | BS16: =ROUND(IF((BQ16/30)*(BH16)<0,0,(BQ16/30)*(BH16)),2) -> 713 | BT16: =+ROUND((BQ16/30)*BG16,2) -> 186 | BU16: =+IF(AND(OR(MONTH($C$5)=1,MONTH($C$5)=3,MONTH($C$5)=5,MONTH($C$5)=7,MONTH($C$5)=8,MONTH($C$5)=10,MONTH($C$5)=12),(AY16+AZ16+BA16+BC16+BF16)=31),0,IF(AND(MONTH($C$5)=2,(AY16+AZ16+BA16+BC16+BF16)=28),0,IF(AND(OR(MONTH($C$5)=4,MONTH($C$5)=6,MONTH($C$5)=9,MONTH($C$5)=11),(AY16+AZ16+BA16+BC16+BF16)=30),0,BR16))) -> 0 | BV16: =ROUND((BQ16/30)*BD16,2) -> 0 | BW16: =ROUND((BQ16/30)*BE16,2) -> 0 | BZ16: =(BQ16/30)*BB16 -> 0 | CD16: =+ROUND(((((BQ16+BR16)/30)/$BJ$14)*2)*BN16,2) -> 0 | CE16: =+ROUND((((BQ16+BR16)/30)/$BJ$14)*125%,2)*BK16 -> 0 | CF16: =+ROUND((((BQ16+BR16)/30)/$BJ$14)*135%,2)*BL16 -> 0 | CG16: =+ROUND(((((BQ16+BR16)/30)/$BJ$14)*2)*BM16,2) -> 0 | CU16: =+ROUND(IF(S16="N",CT16*9%,CT16*6.75%),2) -> 0 | CW16: =ROUND(SUM(BS16:CV16),2) -> 899 | CX16: =ROUND(SUM(BS16:CH16)-DV16,2) -> 899 | CY16: =ROUND(IF(P16="ONP",(CX16-CA16)*$DE$9,0),2) -> 0 | CZ16: =ROUND(IF(P16="ONP",0,(VLOOKUP(P16,$CZ$5:$DE$8,5,0))*CX16),2) -> 89.9 | DA16: =ROUND(IF(I16="SO",IF(P16="ONP",0,VLOOKUP(P16,$CZ$5:$DE$8,6,0)*CX16),0),2) -> 0 | DB16: =+IF(P16="ONP",0,IF(DATEDIF(F16,$E$5,"Y")>=65,0,IF(EL16>=$DA$10,$DA$10*VLOOKUP(P16,$CZ$5:$DE$8,4),VLOOKUP(P16,$CZ$5:$DE$8,4)*EL16))) -> 12.1365 | DC16: =ROUND(IF(Q16="CF",IF(P16="ONP",0,VLOOKUP(P16,$CZ$5:$DE$8,2,0)*CX16),0),2) -> 0 | DD16: =IF(Q16="CM",(ROUND(IF(P16="ONP",0,VLOOKUP(P16,$CZ$5:$DE$8,3,0)*CX16),2)),0) -> 0 | DE16: =SUM(CZ16:DD16) -> 102.0365 | DF16: =ROUND(IF(I16="SO",(ROUND(((CX16-CA16)*$DH$7),2)),0),2) -> 0 | DI16: =+SUMIF('RET. JUD.'!A:A,'FORMATO DE PLANILLA'!$B16,'RET. JUD.'!C:C) -> 0 | DJ16: =DI16*(SUM(BS16:CM16,CO16:CV16)-CY16-DE16-DF16-DG16-DH16) -> 0 | DK16: =+SUMIF('RET. JUD.'!$A:$A,'FORMATO DE PLANILLA'!$B16,'RET. JUD.'!$D:$D) -> 0 | DR16: =+CO16 -> 0 | DS16: 656.92 | DV16: =+(((BQ16+BR16)/30)/$BJ$14)*BO16 -> 0 | DY16: =SUM(CY16:DX16)-DE16 -> 758.9565 | DZ16: =+CW16-DY16 -> 140.0435 | EA16: =+ROUND(IF(S16="S",EJ16*6.75%,EJ16*9%),2) -> 83.7 | EB16: =+ROUND(IF(S16="S",EJ16*2.25%,0),2) -> 0 | EC16: =DA16 -> 0 | ED16: =ROUND(IF($I16="SU",EM16*$DI$5,EM16*$DJ$5),2) -> 5.66 | EE16: =ROUND(IF(I16="SU",EN16*$DI$4,EN16*DJ4),2) -> 136.38 | EF16: =+EE16*3% -> 4.0914 | EG16: =+ROUND(EO16*$DH$6,2) -> 3.26 | EH16: =+EK16*$DH$8 -> 6.7425 | EI16: =SUM(EA16:EG16) -> 233.0914 | EJ16: =+IF(AND((CX16-CA16)<930,IF(OR(MONTH($C$5)=1,MONTH($C$5)=3,MONTH($C$5)=5,MONTH($C$5)=7,MONTH($C$5)=8,MONTH($C$5)=10,MONTH($C$5)=12),COUNTIF(T16:AW16,"DM"),IF(MONTH($C$5)=2,COUNTIF(T16:AU16,"DM"),COUNTIF(T16:AW16,"DM")))>=1,IF(OR(MONTH($C$5)=1,MONTH($C$5)=3,MONTH($C$5)=5,MONTH($C$5)=7,MONTH($C$5)=8,MONTH($C$5)=10,MONTH($C$5)=12),COUNTIF(T16:AW16,"SB"),IF(MONTH($C$5)=2,COUNTIF(T16:AU16,"SB"),COUNTIF(T16:AW16,"SB")))>=1),(CX16-CA16),IF((CX16-CA16)<930,930,(CX16-CA16))) -> 930 | EK16: =+(CX16-CA16) -> 899 | EL16: =+ROUND(SUM(BS16:CH16),2) -> 899 | EM16: =+ROUND((CX16+CT16+CU16-CA16),2) -> 899 | EN16: =+IF((CX16+CT16+CU16)>=$DA$10,$DA$10,(CX16+CT16+CU16)) -> 899 | EO16: =+IF((BR16+BQ16)>=$DA$10,$DA$10,(BR16+BQ16)) -> 930
Y18: SIGLAS | AA18: L
P23: PRIMA
P24: INTEGRA
P25: HABITAT
P26: ONP
P27: PROFUTURO
P28: PRIMA
P29: INTEGRA
P30: INTEGRA
P31: HABITAT
P32: PRIMA
P33: ONP
AY35: =SUM(AY16:AY33) -> 2 | AZ35: 0 | BA35: 0 | BB35: 0 | BC35: 0 | BD35: 0 | BE35: 0 | BF35: 0 | BG35: 6 | BH35: 23 | BI35: 31 | BJ35: 184 | BK35: 0 | BL35: 0 | BM35: 0 | BN35: 0 | BO35: 0 | BP35: 0 | BQ35: 930 | BR35: 0 | BS35: 713 | BT35: 186 | BU35: 0 | BV35: 0 | BW35: 0 | BX35: 0 | BY35: 0 | BZ35: 0 | CA35: 0 | CB35: 0 | CC35: 0 | CD35: 0 | CE35: =SUM(CE16:CE33) -> 0 | CF35: 0 | CG35: 0 | CH35: 0 | CI35: 0 | CJ35: 0 | CK35: 0 | CL35: 0 | CM35: 0 | CN35: 0 | CO35: 0 | CP35: 0 | CQ35: 0 | CR35: 0 | CS35: 0 | CT35: 0 | CU35: 0 | CV35: 0 | CW35: 899 | CX35: 899 | CY35: 0 | CZ35: 89.9 | DA35: 0 | DB35: 12.1365 | DC35: 0 | DD35: 0 | DE35: 102.0365 | DF35: 0 | DG35: 0 | DH35: 0 | DI35: 0 | DJ35: 0 | DK35: =SUM(DK16:DK33) -> 0 | DL35: 0 | DM35: 0 | DN35: 0 | DO35: 0 | DP35: 0 | DQ35: 0 | DR35: 0 | DS35: 656.92 | DT35: 0 | DU35: 0 | DV35: 0 | DW35: 0 | DX35: 0 | DY35: 758.9565 | DZ35: 140.0435 | EA35: 83.7 | EB35: 0 | EC35: 0 | ED35: 5.66 | EE35: 136.38 | EF35: 4.0914 | EG35: 3.26 | EH35: 6.7425 | EI35: 233.0914 | EJ35: 930 | EK35: 899 | EL35: 899 | EM35: 899 | EN35: 899 | EO35: 930
B37: Leyenda:
B38: SIGLAS | C38: DESCRIPCION
B39: DM | C39: DESCANSO MEDICO
B40: F | C40: DIA FALTA
B41: S | C41: DIA SUSPENSIÓN
B42: L | C42: LIBRE
B43: LCG | C43: LICENCIA CON GOCE
B44: LP | C44: LICENCIA PATERNAL
B45: V | C45: VACACIONES
B46: LSG | C46: LICENCIA SIN GOCE/PERMISO
B47: R | C47: RETIRADO
B48: SB | C48: SUBSIDIO
B49: TD | C49: TURNO DIA
B50: TN | C50: TURNO NOCHE

Sheet FERIADOS
A1: FECHA | B1: FERIADO | C1: OBSERVACION
A2: 2019-01-01 | B2: Año Nuevo
A3: 2019-04-18 | B3: Jueves Santo | C3: MODIFICAR
A4: 2019-04-19 | B4: Viernes Santo | C4: MODIFICAR
A5: 2019-06-29 | B5: San Pedro y San Pablo
A6: 2019-07-28 | B6: Independencia del Perú
A7: 2019-07-29 | B7: Día de las Fuerzas Armadas
A8: 2019-08-30 | B8: Santa Rosa de Lima
A9: 2019-10-08 | B9: Combate Naval de Angamos
A10: 2019-11-01 | B10: Día de Todos los Santos
A11: 2019-12-08 | B11: Día de la Inmaculada Concepción
A12: 2019-12-25 | B12: Navidad
A13: 2019-05-01 | B13: DIA DEL TRABAJADOR

Sheet RET. JUD.
A1: DNI | B1: APELLIDOS Y NOMBRES | C1: TASA | D1: FIJO
A2: 12345678 | C2: 0.1 | D2: 100
A3: 12345678 | C3: 0.1 | D3: 100
A4: 12345678 | C4: 0.1 | D4: 100
A5: 12345678 | C5: 0.1 | D5: 100

Sheet OBLIGACIONES LABORALES
D4: Registro de Reporte Obligacion Laboral
C6: * | D6: fecha actual | F6: =TODAY() -> 2022-03-11
C7: * | D7: Unidad | F7: Raura
C8: * | D8: Contrata | F8: Compania Minera Tumi
C12: * | D12: Aportaciones
D13: y/o Tributo | F13: Onp/Essalud | G13: * | H13: N Trabajadores | J13: 19
D15: * Banco | F15: Banco de la Nacion
C17: Monto | D17: Aportaciones
D18: y/o Tributo | F18: 3325 | G18: * | H18: Fecha pago | J18: 2020-07-24
C20: * | D20: Monto Pago | F20: 3325 | G20: * | H20: Periodo | J20: Junio
C22: * | D22: Justificar

Sheet ...
B2: fecha | C2: Unidad | D2: Contrata | E2: Aportaciones | F2: Banco | G2: N Trabajadores | H2: Monto Aportacion | I2: Monto Pago | J2: Fecha pago | K2: Periodo | L2: Justificar

Sheet INF (hidden)
F2: COTNRATISTA
B3: Aportacion | D3: UNIDAD | F3: San.Rafael | G3: Raura | H3: Pucamarca | I3: Fundicion.Pisco | K3: mes | M3: año
B4: Seleccionar | D4: San.Rafael | F4: Confipetrol sa | G4: Aesa | H4: Exsa | I4: El Canario | K4: Enero | M4: 2019
B5: Essalud | D5: Raura | F5: Ur Topografia | G5: ByB Eisemn | H5: Pegaus | I5: Electrotecnia | K5: Febrero | M5: 2020
B6: Essalud Vida | D6: Pucamarca | F6: Cmmei Del Peru S.A. | G6: Compania Minera Tumi | H6: Sodexo | I6: Famecsa | K6: Marzo
B7: Onp | D7: Fundicion.Pisco | F7: Corporacion Ramis Srl | G7: Transportes Linea SA | H7: EMC2 Consulting | I7: Pemsur | K7: Abril
B8: Renta De 5ta Categoria | F8: Ligabue | G8: Constructora Meneses | H8: Frad sa | I8: Estivadores | K8: Mayo
B9: Sctr Pension | F9: Explomin Peru sac | G9: Cjnetcom | H9: Ferreyros sac | I9: Ligabue Sa | K9: Junio
B10: Sctr Salud | D10: BANCO | F10: Comin sa | G10: Corporacion Panaservice SAC | H10: Neuma Peru | I10: Beatita De Humay | K10: Julio
B11: FCJMMS 0.5% | D11: Seleccionar | F11: Epcm Experts sac | G11: ECOSERMUQ | K11: Agosto
B12: AFP Prima | D12: Banco de la Nacion | F12: Tumi Contratista Minero sac | G12: Clínica Internacional | K12: Septiembre
B13: AFP Integra | D13: Banco Continental | F13: S&R Contratistas | G13: JV RESGUARDO | K13: Octubre
B14: AFP Profuturo | D14: Banco de Credito | G14: Kanay S.A.C. | K14: Noviembre
B15: AFP Habitat | D15: Scotiabank | G15: Vijicsa | K15: Diciembre
B16: Senati | G16: Overall
B17: Onp/Essalud
B18: Onp/Essalud/5ta
B19: Sctr Pension/Salud
B20: Onp/Essalud/5ta/Essalud vida
B21: AFP Prima/Integra/Profoturo/Habitat
B22: Vida Ley
B23: N/A
